fUSD/lending_fUSD_20260224
["ID","MTS","AMOUNT","RATE_DAILY","PERIOD"]
[406514007,1771895487331,-521.51,0.00045479,120]
[406514008,1771895487340,-500.0,0.00045479,120]
[406514009,1771895487350,-500.0,0.00045479,120]
[406514010,1771895487360,-500.0,0.00045479,120]
[406514011,1771895487370,-500.0,0.00045479,120]
[406514012,1771895487379,-500.0,0.00045479,120]
[406514013,1771895487389,-500.0,0.00045479,120]
[406514014,1771895487399,-500.0,0.00045479,120]
[406514015,1771895487409,-500.0,0.00045479,120]
[406514016,1771895487418,-500.0,0.00045479,120]
[406514017,1771895487428,-500.0,0.00045479,120]
[406514018,1771895487438,-500.0,0.00045479,120]
[406514019,1771895487448,-500.0,0.00045479,120]
[406514020,1771895487458,-253.65,0.00045479,120]
[406514021,1771895487467,-500.0,0.00045479,120]
[406514022,1771895487477,-500.0,0.00045479,120]
[406514023,1771895487487,-500.0,0.00045479,120]
[406514024,1771895487497,-500.0,0.00045479,120]
[406514025,1771895487507,-500.0,0.00045479,120]
[406514026,1771895487516,-469.28,0.00045479,120]
[406514027,1771895487526,-162.26030901,0.00045479,120]
[406514028,1771895487536,-500.0,0.00045479,120]
[406514029,1771895487545,-500.0,0.00045479,120]
[406514030,1771895487555,-500.0,0.00045479,120]
[406514031,1771895487564,-500.0,0.00045479,120]
[406514032,1771895487574,-500.0,0.00045479,120]
[406514033,1771895487583,-500.0,0.00045479,120]
[406514034,1771895487593,-500.0,0.00045479,120]
[406514035,1771895487602,-500.0,0.00045479,120]
[406514036,1771895487611,-500.0,0.00045479,120]
[406514037,1771895487785,-500.0,0.00045479,120]
[406514038,1771895487796,-500.0,0.00045479,120]
[406514039,1771895487807,-500.0,0.00045479,120]
[406514040,1771895487817,-500.0,0.00045479,120]
[406514041,1771895487827,-500.0,0.00045479,120]
[406514042,1771895487838,-284.91,0.00045479,120]
[406514043,1771895487848,-500.0,0.00045479,120]
[406514044,1771895487859,-500.0,0.00045479,120]
[406514045,1771895487869,-500.0,0.00045479,120]
[406514046,1771895487878,-500.0,0.00045479,120]
[406514047,1771895487888,-500.0,0.00045479,120]
[406514048,1771895487901,-151.85,0.00045479,120]
[406514049,1771895487910,-640.72089788,0.00045479,120]
[406514050,1771895487920,-500.0,0.00045479,120]
[406514051,1771895487929,-500.20531084,0.00045479,120]
[406514052,1771895487939,-500.0,0.00045479,120]
[406514053,1771895487948,-500.0,0.00045479,120]
[406514054,1771895487958,-500.0,0.00045479,120]
[406514055,1771895487967,-500.0,0.00045479,120]
[406514056,1771895487979,-500.0,0.00045479,120]
[406514057,1771895487989,-500.0,0.00045479,120]
[406514058,1771895487999,-500.0,0.00045479,11]
[406514059,1771895488010,-519.09,0.00045479,120]
[406514060,1771895488020,-500.0,0.00045479,11]
[406514061,1771895488029,-500.0,0.00045479,11]
[406514062,1771895488040,-500.0,0.00045479,11]
[406514063,1771895488051,-547.81433834,0.00045479,11]
[406514064,1771895488061,-500.0,0.00045479,120]
[406514065,1771895488071,-555.641662,0.00045479,120]
[406514066,1771895488081,-500.0,0.00045479,120]
[406514067,1771895488090,-500.0,0.00045479,120]
[406514068,1771895488099,-500.0,0.00045479,120]
[406514069,1771895488108,-500.0,0.00045479,120]
[406514070,1771895488118,-500.0,0.00045479,30]
[406514071,1771895488127,-500.0,0.00045479,120]
[406514072,1771895488136,-500.0,0.00045479,120]
[406514073,1771895488147,-500.0,0.00045479,120]
[406514074,1771895488156,-500.0,0.00045479,120]
[406514075,1771895488166,-500.0,0.00045479,120]
[406514076,1771895488176,-500.0,0.00045479,120]
[406514077,1771895488186,-500.0,0.00045479,120]
[406514078,1771895488196,-500.0,0.00045479,120]
[406514079,1771895488205,-500.0,0.00045479,120]
[406514080,1771895488215,-500.0,0.00045479,120]
[406514081,1771895488225,-500.0,0.00045479,120]
[406514082,1771895488235,-500.0,0.00045479,120]
[406514083,1771895488244,-500.0,0.00045479,120]
[406514084,1771895488254,-597.09,0.00045479,120]
[406514085,1771895488263,-500.0,0.00045479,120]
[406514086,1771895488273,-500.0,0.00045479,120]
[406514087,1771895488282,-500.0,0.00045479,120]
[406514088,1771895488291,-500.0,0.00045479,120]
[406514089,1771895488301,-500.0,0.00045479,120]
[406514090,1771895488310,-494.30309172,0.00045479,120]
[406514091,1771895488319,-556.35,0.00045479,120]
[406514092,1771895488328,-500.0,0.00045479,120]
[406514093,1771895488338,-500.0,0.00045479,120]
[406514094,1771895488347,-500.0,0.00045479,120]
[406514095,1771895488357,-500.0,0.00045479,120]
[406514096,1771895488367,-500.0,0.00045479,120]
[406514097,1771895488376,-500.0,0.00045479,120]
[406514098,1771895488386,-500.0,0.00045479,5]
[406514099,1771895488395,-500.0,0.00045479,5]
[406514100,1771895488405,-500.0,0.00045479,5]
[406514101,1771895488414,-500.0,0.00045479,5]
[406514102,1771895488423,-500.0,0.00045479,5]
[406514103,1771895488432,-500.0,0.00045479,5]
[406514104,1771895488441,-209.19739596,0.00045479,5]
[406514105,1771895488451,-500.0,0.00045479,120]
[406514106,1771895488460,-500.0,0.00045479,120]
[406514107,1771895488470,-500.0,0.00045479,120]
[406514108,1771895488481,-500.0,0.00045479,120]
[406514109,1771895488490,-500.0,0.00045479,120]
[406514110,1771895488500,-364.38567572,0.00045479,5]
[406514111,1771895488510,-500.0,0.00045479,120]
[406514112,1771895488520,-500.0,0.00045479,120]
[406514113,1771895488530,-500.0,0.00045479,120]
[406514114,1771895488539,-500.0,0.00045479,120]
[406514115,1771895488548,-500.0,0.00045479,120]
[406514116,1771895488557,-500.0,0.00045479,120]
[406514117,1771895488566,-500.0,0.00045479,120]
[406514118,1771895488576,-500.0,0.00045479,120]
[406514119,1771895488585,-500.0,0.00045479,120]
[406514120,1771895488594,-500.0,0.00045479,120]
[406514121,1771895488603,-158.769236,0.00045479,120]
[406514122,1771895488613,-158.769236,0.00045479,120]
[406514123,1771895488622,-158.769236,0.00045479,120]
[406514124,1771895488632,-158.769236,0.00045479,120]
[406514125,1771895488641,-158.769236,0.00045479,120]
[406514126,1771895488651,-158.769236,0.00045479,120]
[406514127,1771895488660,-158.769236,0.00045479,120]
[406514128,1771895488669,-158.769236,0.00045479,120]
[406514129,1771895488679,-151.0,0.00045479,120]
[406514130,1771895488688,-256.82245,0.00045479,120]
[406514131,1771895488697,-744.63976942,0.00045479,120]
[406514132,1771895488707,-628.3,0.00045479,120]
[406514133,1771895488716,-628.3,0.00045479,120]
[406514134,1771895488726,-628.3,0.00045479,120]
[406514135,1771895488735,-628.3,0.00045479,120]
[406514136,1771895488747,-628.3,0.00045479,120]
[406514137,1771895488757,-628.3,0.00045479,120]
[406514138,1771895488766,-628.3,0.00045479,120]
[406514139,1771895488776,-628.3,0.00045479,120]
[406514140,1771895488785,-628.3,0.00045479,120]
[406514141,1771895488794,-628.3,0.00045479,120]
[406514142,1771895488803,-628.3,0.00045479,120]
[406514143,1771895488813,-628.3,0.00045479,120]
[406514144,1771895488823,-628.3,0.00045479,120]
[406514145,1771895488832,-628.3,0.00045479,120]
[406514146,1771895488842,-628.3,0.00045479,120]
[406514147,1771895488851,-628.3,0.00045479,120]
[406514148,1771895488860,-628.3,0.00045479,120]
[406514149,1771895488870,-628.3,0.00045479,120]
[406514150,1771895488879,-628.3,0.00045479,120]
[406514151,1771895488888,-628.3,0.00045479,120]
[406514152,1771895488897,-628.3,0.00045479,120]
[406514153,1771895488907,-628.3,0.00045479,120]
[406514154,1771895488917,-628.3,0.00045479,120]
[406514155,1771895488927,-628.52169213,0.00045479,120]
[406514156,1771895488938,-151.0,0.00045479,120]
[406514157,1771895488948,-151.0,0.00045479,120]
[406514158,1771895488958,-151.0,0.00045479,120]
[406514159,1771895488968,-151.0,0.00045479,120]
[406514160,1771895488978,-586.11,0.00045479,120]
[406514161,1771895488988,-586.11,0.00045479,120]
[406514162,1771895488997,-586.11,0.00045479,120]
[406514163,1771895489007,-586.11,0.00045479,120]
[406514164,1771895489016,-586.11,0.00045479,120]
[406514165,1771895489027,-586.11,0.00045479,120]
[406514166,1771895489036,-586.11,0.00045479,120]
[406514167,1771895489046,-586.11,0.00045479,120]
[406514168,1771895489055,-586.11,0.00045479,120]
[406514169,1771895489065,-586.11,0.00045479,120]
[406514170,1771895489077,-586.11,0.00045479,120]
[406514171,1771895489086,-586.11,0.00045479,120]
[406514172,1771895489096,-586.11,0.00045479,120]
[406514173,1771895489106,-586.11,0.00045479,120]
[406514174,1771895489117,-586.11,0.00045479,120]
[406514175,1771895489127,-586.11,0.00045479,120]
[406514176,1771895489138,-586.11,0.00045479,120]
[406514177,1771895489148,-586.11,0.00045479,120]
[406514178,1771895489159,-586.11,0.00045479,120]
[406514179,1771895489169,-586.11,0.00045479,120]
[406514180,1771895489179,-586.11,0.00045479,120]
[406514181,1771895489190,-586.11,0.00045479,120]
[406514182,1771895489200,-586.11,0.00045479,120]
[406514183,1771895489209,-586.27,0.00045479,120]
[406514184,1771895489219,-500.0,0.00045479,120]
[406514185,1771895489229,-500.0,0.00045479,15]
[406514186,1771895489238,-500.0,0.00045479,15]
[406514187,1771895489248,-559.39,0.00045479,15]
[406514188,1771895489257,-989.0,0.000455,30]
[406514189,1771895489266,-309.0,0.000455,30]
[406514190,1771895489276,-431.0,0.000455,30]
[406514191,1771895489287,-303.0,0.000455,30]
[406514192,1771895489296,-561.31,0.00045549,120]
[406514193,1771895489306,-1122.85,0.00045549,120]
[406514194,1771895489315,-1287.01,0.00045549,120]
[406514195,1771895489325,-2021.25,0.00045549,120]
[406514196,1771895489334,-235.18,0.00045549,120]
[406514197,1771895489344,-1020.5,0.00045549,120]
[406514198,1771895489353,-586.48,0.00045554,120]
[406514199,1771895489364,-604.51,0.00045554,120]
[406514200,1771895489373,-604.51,0.00045554,120]
[406514201,1771895489383,-604.51,0.00045554,120]
[406514202,1771895489392,-604.51,0.00045554,120]
[406514203,1771895489401,-604.62,0.00045554,120]
[406514204,1771895489411,-500.0,0.00045554,120]
[406514205,1771895489422,-591.76767014,0.00045554,120]
[406514206,1771895489433,-500.0,0.00045554,120]
[406514207,1771895489443,-492.01,0.00045554,120]
[406514208,1771895489455,-685.06,0.00045554,120]
[406514209,1771895489465,-685.06,0.00045554,120]
[406514210,1771895489475,-685.06,0.00045554,120]
[406514211,1771895489487,-685.06,0.00045554,120]
[406514212,1771895489497,-685.1004331,0.00045554,120]
[406514213,1771895489506,-500.0,0.00045564,120]
[406514214,1771895489516,-1700.82,0.00045564,120]
[406514215,1771895489525,-207.8,0.00045564,120]
[406514216,1771895489534,-500.0,0.00045564,120]
[406514217,1771895489543,-500.0,0.00045564,120]
[406514218,1771895489553,-640.45,0.00045564,120]
[406514219,1771895489563,-585.43,0.00045564,120]
[406514220,1771895489572,-399.62483552,0.00045581,20]
[406514221,1771895489582,-169.93632099,0.00045583,120]
[406514222,1771895489591,-447.06297488,0.00045583,2]
[406514223,1771895489601,-904.64909465,0.00045583,2]
[406514224,1771895489610,-1043.24,0.00045583,2]
[406514225,1771895489619,-155.91,0.00045616,120]
[406514226,1771895489629,-202.0,0.00045636,120]
[406514227,1771895489638,-1700.82,0.00045636,120]
[406514228,1771895489647,-1700.82,0.00045636,120]
[406514229,1771895489657,-1700.82,0.00045636,120]
[406514230,1771895489666,-1700.82,0.00045636,120]
[406514231,1771895489675,-1700.94,0.00045636,120]
[406514232,1771895489684,-500.0,0.00045636,120]
[406514233,1771895489694,-649.31173882,0.00045636,120]
[406514234,1771895489703,-500.0,0.00045636,120]
[406514235,1771895489712,-500.0,0.00045636,120]
[406514236,1771895489721,-500.0,0.00045636,120]
[406514237,1771895489731,-500.0,0.00045636,120]
[406514238,1771895489740,-640.45,0.00045636,120]
[406514239,1771895489752,-640.45,0.00045636,120]
[406514240,1771895489764,-640.45,0.00045636,120]
[406514241,1771895489773,-640.45,0.00045636,120]
[406514242,1771895489783,-640.45491803,0.00045636,120]
[406514243,1771895489793,-585.43,0.00045636,120]
[406514244,1771895489802,-585.43,0.00045636,120]
[406514245,1771895489811,-585.43,0.00045636,120]
[406514246,1771895489820,-585.43,0.00045636,120]
[406514247,1771895489830,-585.48,0.00045636,120]
[406514248,1771895489840,-159.29928243,0.0004564,120]
[406514249,1771895489849,-561.31,0.00045649,120]
[406514250,1771895489858,-561.31,0.00045649,120]
[406514251,1771895489868,-561.31,0.00045649,120]
[406514252,1771895489877,-561.31,0.00045649,120]
[406514253,1771895489886,-561.35,0.00045649,120]
[406514254,1771895489896,-1122.85,0.00045649,120]
[406514255,1771895489905,-1122.85,0.00045649,120]
[406514256,1771895489914,-1122.85,0.00045649,120]
[406514257,1771895489924,-1122.85,0.00045649,120]
[406514258,1771895489934,-1122.91,0.00045649,120]
[406514259,1771895489943,-1287.01,0.00045649,120]
[406514260,1771895489953,-1287.01,0.00045649,120]
[406514261,1771895489963,-1287.01,0.00045649,120]
[406514262,1771895489972,-1287.01,0.00045649,120]
[406514263,1771895489982,-1287.19,0.00045649,120]
[406514264,1771895489992,-2021.25,0.00045649,120]
[406514265,1771895490001,-2021.25,0.00045649,120]
[406514266,1771895490011,-2021.25,0.00045649,120]
[406514267,1771895490020,-2021.25,0.00045649,120]
[406514268,1771895490029,-2021.4,0.00045649,120]
[406514269,1771895490039,-1020.5,0.00045649,120]
[406514270,1771895490048,-1020.5,0.00045649,120]
[406514271,1771895490057,-1020.5,0.00045649,120]
[406514272,1771895490066,-1020.5,0.00045649,120]
[406514273,1771895490075,-1020.6,0.00045649,120]
[406514274,1771895490084,-691.88,0.00045662,2]
[406514275,1771895490094,-691.88,0.00045664,2]
[406514276,1771895490103,-691.88,0.00045664,2]
[406514277,1771895490113,-691.88,0.00045664,2]
[406514278,1771895490123,-691.88,0.00045664,2]
[406514279,1771895490132,-691.88,0.00045664,2]
[406514280,1771895490142,-691.88,0.00045664,2]
[406514281,1771895490151,-691.89491878,0.00045664,2]
[406514282,1771895490161,-350.0,0.00045667,2]
[406514283,1771895490171,-800.0,0.0004567,17]
[406514284,1771895490226,-800.0,0.0004567,17]
[406514285,1771895490236,-800.0,0.0004567,17]
[406514286,1771895490246,-800.0,0.0004567,17]
[406514287,1771895490256,-800.0,0.0004567,17]
[406514288,1771895490266,-800.0,0.0004567,17]
[406514289,1771895490275,-800.0,0.0004567,17]
[406514290,1771895490284,-800.0,0.0004567,17]
[406514291,1771895490294,-762.08489393,0.0004567,33]
[406514292,1771895490304,-150.0,0.00045671,30]
[406514293,1771895490313,-150.8272425,0.00045671,30]
[406514294,1771895490322,-500.0,0.00045679,120]
[406514295,1771895490332,-324.95249439,0.00045679,120]
[406514296,1771895490341,-500.0,0.00045679,120]
[406514297,1771895490350,-500.0,0.00045679,120]
[406514298,1771895490359,-500.0,0.00045679,120]
[406514299,1771895490369,-332.75899931,0.00045679,120]
[406514300,1771895490378,-502.75,0.00045679,120]
[406514301,1771895490387,-500.0,0.00045679,120]
[406514302,1771895490397,-500.0,0.00045679,10]
[406514303,1771895490407,-500.0,0.00045679,45]
[406514304,1771895490416,-856.94,0.00045679,120]
[406514305,1771895490425,-500.0,0.0004568,120]
[406514306,1771895490435,-308.87657852,0.0004568,120]
[406514307,1771895490444,-709.77,0.0004568,120]
[406514308,1771895490453,-709.77,0.0004568,120]
[406514309,1771895490462,-709.77,0.0004568,120]
[406514310,1771895490471,-709.77,0.0004568,120]
[406514311,1771895490481,-709.77,0.0004568,120]
[406514312,1771895490490,-709.77,0.0004568,120]
[406514313,1771895490499,-709.97,0.0004568,120]
[406514314,1771895490508,-738.57,0.0004568,120]
[406514315,1771895490517,-738.57,0.0004568,120]
[406514316,1771895490526,-738.57,0.0004568,120]
[406514317,1771895490536,-738.57,0.0004568,120]
[406514318,1771895490545,-738.57,0.0004568,120]
[406514319,1771895490554,-738.57,0.0004568,120]
[406514320,1771895490564,-738.79,0.0004568,120]
[406514321,1771895490573,-150.0,0.00045681,2]
[406514322,1771895490582,-158.769236,0.00045681,120]
[406514323,1771895490592,-158.769236,0.00045681,120]
[406514324,1771895490602,-158.769236,0.00045681,120]
[406514325,1771895490611,-158.769236,0.00045681,120]
[406514326,1771895490620,-158.769236,0.00045681,120]
[406514327,1771895490630,-158.769236,0.00045681,120]
[406514328,1771895490639,-158.769236,0.00045681,120]
[406514329,1771895490649,-158.769236,0.00045681,120]
[406514330,1771895490659,-158.769236,0.00045681,120]
[406514331,1771895490667,-158.769236,0.00045681,120]
[406514332,1771895490677,-158.769236,0.00045681,120]
[406514333,1771895490686,-158.769236,0.00045681,120]
[406514334,1771895490695,-157.44,0.00045681,2]
[406514335,1771895490705,-300.0,0.00045682,30]
[406514336,1771895490714,-666.0,0.00045682,30]
[406514337,1771895490724,-5000.0,0.00045683,120]
[406514338,1771895490735,-3499.114299,0.00045683,120]
[406514339,1771895490746,-151.0,0.00045683,120]
[406514340,1771895490756,-151.0,0.00045683,120]
[406514341,1771895490765,-151.0,0.00045683,120]
[406514342,1771895490774,-151.0,0.00045683,120]
[406514343,1771895490783,-1449010.6266798,0.00045683,10]
[406514344,1771895491523,-6600.50259506,0.00045683,10]
[406514345,1771895491535,-4719.54635343,0.00045683,10]
[406514346,1771895491546,-1383.71753629,0.00045683,10]
[406514347,1771895491580,-150.41230104,0.0002,20]
[406514348,1771895491589,-18843.79035378,0.00045683,10]
[406514349,1771895491600,-2103.84403514,0.00045683,10]
[406514350,1771895491612,-646.09986623,0.00045683,10]
[406514351,1771895491624,-72209.20913979,0.00045683,10]
[406514352,1771895491635,-645.72937743,0.00045683,10]
[406514353,1771895491645,-1176.29536712,0.00045683,10]
[406514354,1771895491656,-522.17096107,0.00045683,10]
[406514355,1771895491667,-405.42928062,0.00045683,10]
[406514356,1771895491699,9970.12,0.00013,3]
[406514357,1771895491724,-359.04527717,0.00013359,2]
[406514358,1771895491735,-228.25,0.00045,120]
[406514359,1771895491747,-25811.34284722,0.00045683,10]
[406514360,1771895491759,-3165.45,0.00045683,10]
[406514361,1771895491770,-474.356646,0.00045683,10]
[406514362,1771895491781,-9678.9152524,0.00045683,10]
[406514363,1771895491792,-354.8627077,0.00045683,10]
[406514364,1771895491804,-666.0,0.00045683,10]
[406514365,1771895491816,-927.34473525,0.00045683,10]
[406514366,1771895491828,-436.93597343,0.00045683,10]
[406514367,1771895491839,-523.49586585,0.00045683,10]
[406514368,1771895491850,-416.30793719,0.00045683,10]
[406514369,1771895491861,-328.00953762,0.00045683,10]
[406514370,1771895491872,-1821.56035877,0.00045683,10]
[406514371,1771895491883,-686.69924265,0.00045683,10]
[406514379,1771895837387,500.0,0.000108,2]
[406514380,1771895837885,500.0,0.000108,2]
[406514381,1771895838062,500.0,0.000108,2]
[406514382,1771895838173,500.0,0.000108,2]
[406514383,1771895838542,500.0,0.000108,2]
[406514384,1771895838806,500.0,0.000108,2]
[406514385,1771895839059,500.0,0.000108,2]
[406514386,1771895839925,500.0,0.000108,2]
[406514387,1771895840468,500.0,0.000108,2]
[406514388,1771895845158,500.0,0.000108,2]
[406514410,1771896137472,500.0,0.000108,2]
[406514411,1771896137951,500.0,0.000108,2]
[406514412,1771896140978,500.0,0.000108,2]
[406514413,1771896141452,500.0,0.000108,2]
[406514414,1771896141958,500.0,0.000108,2]
[406514415,1771896142436,500.0,0.000108,2]
[406514416,1771896143086,500.0,0.000108,2]
[406514417,1771896143562,500.0,0.000108,2]
[406514418,1771896144025,500.0,0.000108,2]
[406514419,1771896144087,500.0,0.000108,2]
[406514420,1771896144127,600.0,0.000108,2]
[406514421,1771896144626,600.0,0.000108,2]
[406514422,1771896144682,500.0,0.000108,2]
[406514423,1771896145165,500.0,0.000108,2]
[406514424,1771896145217,600.0,0.000108,2]
[406514425,1771896145674,500.0,0.000108,2]
[406514426,1771896145729,600.0,0.000108,2]
[406514427,1771896146130,500.0,0.000108,2]
[406514428,1771896146206,600.0,0.000108,2]
[406514429,1771896146623,0.01,0.000108,2]
[406514430,1771896146649,499.99,0.000108,2]
[406514431,1771896146686,600.0,0.000108,2]
[406514432,1771896146718,500.0,0.000108,2]
[406514433,1771896147092,500.0,0.000108,2]
[406514434,1771896147170,600.0,0.000108,2]
[406514435,1771896147441,500.0,0.000108,2]
[406514436,1771896147585,500.0,0.000108,2]
[406514437,1771896147644,600.0,0.000108,2]
[406514438,1771896148182,500.0,0.000108,2]
[406514439,1771896148212,200.02,0.000108,2]
[406514440,1771896148235,399.98,0.000108,2]
[406514441,1771896148436,500.0,0.000108,2]
[406514442,1771896148516,500.0,0.000108,2]
[406514443,1771896148616,600.0,0.000108,2]
[406514444,1771896148902,500.0,0.000108,2]
[406514445,1771896148979,1100.0,0.000108,2]
[406514446,1771896149112,600.0,0.000108,2]
[406514447,1771896149462,500.0,0.000108,2]
[406514448,1771896149490,1100.0,0.000108,2]
[406514449,1771896149632,600.0,0.000108,2]
[406514450,1771896149858,500.0,0.000108,2]
[406514451,1771896150107,600.0,0.000108,2]
[406514452,1771896150472,1100.0,0.000108,2]
[406514453,1771896150579,700.0,0.000108,2]
[406514454,1771896150953,1100.0,0.000108,2]
[406514455,1771896151162,500.0,0.000108,2]
[406514456,1771896151435,1100.0,0.000108,2]
[406514457,1771896151529,500.0,0.000108,2]
[406514458,1771896151776,500.0,0.000108,2]
[406514459,1771896151993,500.0,0.000108,2]
[406514460,1771896152262,500.0,0.000108,2]
[406514461,1771896152437,1100.0,0.000108,2]
[406514462,1771896152474,300.01,0.000108,2]
[406514463,1771896152500,199.99,0.000108,2]
[406514464,1771896152748,500.0,0.000108,2]
[406514465,1771896152943,500.0,0.000108,2]
[406514466,1771896152980,1100.0,0.000108,2]
[406514467,1771896153210,500.0,0.000108,2]
[406514468,1771896153436,500.0,0.000108,2]
[406514469,1771896153466,1100.0,0.000108,2]
[406514470,1771896153972,1100.0,0.000108,2]
[406514471,1771896154439,1100.0,0.000108,2]
[406514472,1771896155446,1100.0,0.000108,2]
[406514473,1771896155976,1100.0,0.000108,2]
[406514474,1771896156455,600.01,0.000108,2]
[406514475,1771896156478,499.99,0.000108,2]
[406514476,1771896156955,1707.62698161,0.000108,2]
[406514477,1771896277198,2379.54,0.00011233,2]
[406514479,1771896308393,666.63,8.58e-05,2]
[406514480,1771896308598,666.63,8.774e-05,2]
[406514481,1771896308808,666.63,8.967e-05,2]
[406514482,1771896309030,620.58,9.161e-05,2]
[406514483,1771896309054,46.05,9.161e-05,2]
[406514484,1771896309459,666.63,9.354e-05,2]
[406514485,1771896309741,666.63,9.548e-05,2]
[406514486,1771896309949,666.63,9.741e-05,2]
[406514487,1771896310194,666.63,9.935e-05,2]
[406514488,1771896310390,666.63,0.00010128,2]
[406514489,1771896310646,666.63,0.00010322,2]
[406514490,1771896310862,666.63,0.00010516,2]
[406514491,1771896311093,287.55,0.00010709,2]
[406514492,1771896311119,379.08,0.00010709,2]
[406514493,1771896311296,666.63,0.00010903,2]
[406514494,1771896311496,666.63,0.00011096,2]
[406514495,1771896311713,666.63,0.0001129,2]
[406514496,1771896312196,666.63,0.00011483,2]
[406514497,1771896312235,666.63,0.00011677,2]
[406514498,1771896312412,666.63,0.0001187,2]
[406514499,1771896312844,621.15,0.00012064,2]
[406514500,1771896312867,45.48,0.00012064,2]
[406514507,1771896436536,500.0,0.000108,2]
[406514508,1771896442867,500.0,0.000108,2]
[406514509,1771896443011,500.0,0.000108,2]
[406514511,1771896445974,500.0,0.000108,2]
[406514512,1771896449614,711.01123373,0.000108,2]
[406514519,1771896539642,1600.0,0.00012017,2]
[406514520,1771896589546,150.0,0.00011981,2]
[406514521,1771896602121,-666.63,0.00012257,2]
[406514522,1771896602150,-250.0,0.00012329,2]
[406514523,1771896602177,-279.9,0.000124,2]
[406514524,1771896602206,-252.0,0.000124,2]
[406514525,1771896602238,-231.21812179,0.00012405,2]
[406514526,1771896602265,-500.0,0.00012476,2]
[406514527,1771896602291,-166.66,0.00012579,2]
[406514528,1771896602327,-194.0,0.0001274,2]
[406514529,1771896602359,-685.0,0.0001274,2]
[406514530,1771896602388,-447.06297488,0.00012753,2]
[406514531,1771896602416,-210.18970264,0.00012753,2]
[406514532,1771896602446,-1200.0,0.00012753,2]
[406514533,1771896602478,-300.0,0.00012753,2]
[406514534,1771896602508,-150.0,0.00012753,2]
[406514535,1771896602536,-300.0,0.00012753,2]
[406514536,1771896602563,-500.0,0.00012754,2]
[406514537,1771896602591,-1267.35484119,0.00012754,2]
[406514538,1771896602622,-427.64561977,0.00012754,2]
[406514539,1771896602651,-500.0,0.00012754,2]
[406514540,1771896602683,-395.93664258,0.00012754,2]
[406514541,1771896602714,-500.0,0.00012754,2]
[406514542,1771896602754,-500.0,0.00012754,2]
[406514543,1771896602787,-500.0,0.00012754,2]
[406514544,1771896602820,-500.0,0.00012754,2]
[406514545,1771896602853,-303.43955794,0.00012754,2]
[406514546,1771896602884,-500.0,0.00012754,2]
[406514547,1771896602916,-500.0,0.00012754,2]
[406514548,1771896602948,-500.0,0.00012754,2]